fUSD/lending_fUSD_20240827
["ID","MTS","AMOUNT","RATE_DAILY","PERIOD"]
[336269752,1724753443428,-909.976843,0.00010992,2]
[336269755,1724753443445,-259.983157,0.00010992,2]
[336269757,1724753443454,-410.386843,0.00010992,2]
[336269761,1724753443487,-204.113157,0.00010992,2]
[336269763,1724753443497,-353.26793061,0.00010992,2]
[336269765,1724753443509,-146.73206939,0.00010992,2]
[336269767,1724753443518,-500.0,0.00010992,2]
[336269769,1724753443530,-500.0,0.00010992,2]
[336269771,1724753443539,-500.0,0.00010992,2]
[336269773,1724753443550,-500.0,0.00010992,2]
[336269775,1724753443562,-500.0,0.00010992,2]
[336269777,1724753443572,-484.76793061,0.00010992,2]
[336269780,1724753443592,-15.23206939,0.00010992,2]
[336269782,1724753443603,-639.41,0.00010992,2]
[336269784,1724753443612,-778.43,0.00010992,2]
[336269786,1724753443621,-1053.25,0.00010992,2]
[336269788,1724753443631,-500.0,0.00010992,2]
[336269790,1724753443640,-500.0,0.00010992,2]
[336269792,1724753443649,-1025.13,0.00010992,2]
[336269794,1724753443660,-500.0,0.00010992,2]
[336269796,1724753443669,-500.0,0.00010992,2]
[336269798,1724753443678,-973.11,0.00010992,2]
[336269800,1724753443688,-500.0,0.00010992,2]
[336269801,1724753443697,-500.0,0.00010992,2]
[336269803,1724753443707,-500.0,0.00010992,2]
[336269805,1724753443716,-773.04,0.00010992,2]
[336269807,1724753443725,-500.0,0.00010992,2]
[336269809,1724753443735,-500.0,0.00010992,2]
[336269811,1724753443744,-767.9,0.00010992,2]
[336269813,1724753443753,-500.0,0.00010992,2]
[336269815,1724753443763,-500.0,0.00010992,2]
[336269817,1724753443772,-500.0,0.00010992,2]
[336269819,1724753443781,-509.51,0.00010992,2]
[336269821,1724753443790,-500.0,0.00010992,2]
[336269823,1724753443800,-407.44,0.00010992,2]
[336269825,1724753443809,-500.0,0.00010992,2]
[336269827,1724753443819,-500.0,0.00010992,2]
[336269828,1724753443827,-576.82469613,0.00010992,2]
[336269830,1724753443837,-500.0,0.00010992,2]
[336269832,1724753443846,-500.0,0.00010992,2]
[336269834,1724753443855,-500.0,0.00010992,2]
[336269836,1724753443865,-500.0,0.00010992,2]
[336269838,1724753443874,-500.0,0.00010992,2]
[336269840,1724753443884,-500.0,0.00010992,2]
[336269842,1724753443894,-500.0,0.00010992,2]
[336269844,1724753443903,-247.12,0.00010992,2]
[336269846,1724753443912,-500.0,0.00010992,2]
[336269848,1724753443922,-500.0,0.00010992,2]
[336269850,1724753443931,-500.0,0.00010992,2]
[336269852,1724753443941,-794.4,0.00010992,2]
[336269854,1724753443950,-290.34092747,0.00010992,2]
[336269856,1724753443960,-500.0,0.00010992,2]
[336269858,1724753443969,-500.0,0.00010992,2]
[336269860,1724753443978,-500.0,0.00010992,2]
[336269862,1724753443987,-500.0,0.00010992,2]
[336269864,1724753443997,-500.0,0.00010992,2]
[336269866,1724753444006,-355.6,0.00010992,2]
[336269868,1724753444016,-500.0,0.00010992,2]
[336269870,1724753444025,-500.0,0.00010992,2]
[336269872,1724753444035,-500.0,0.00010992,2]
[336269874,1724753444043,-500.0,0.00010992,2]
[336269876,1724753444053,-500.0,0.00010992,2]
[336269878,1724753444062,-500.0,0.00010992,2]
[336269880,1724753444072,-500.0,0.00010992,2]
[336269882,1724753444082,-500.0,0.00010992,2]
[336269884,1724753444092,-500.0,0.00010992,2]
[336269886,1724753444101,-500.0,0.00010992,2]
[336269888,1724753444111,-500.0,0.00010992,2]
[336269889,1724753444120,-500.0,0.00010992,2]
[336269891,1724753444130,-500.0,0.00010992,2]
[336269893,1724753444139,-500.0,0.00010992,2]
[336269895,1724753444149,-629.2,0.00010992,2]
[336269897,1724753444158,-500.0,0.00010992,2]
[336269899,1724753444167,-500.0,0.00010992,2]
[336269901,1724753444177,-500.0,0.00010992,2]
[336269903,1724753444186,-313.96,0.00010992,2]
[336269905,1724753444195,-500.0,0.00010992,2]
[336269907,1724753444204,-500.0,0.00010992,2]
[336269909,1724753444212,-997.6,0.00010992,2]
[336269911,1724753444222,-808.11,0.00010992,2]
[336269913,1724753444231,-500.0,0.00010992,2]
[336269915,1724753444240,-616.95,0.00010992,2]
[336269917,1724753444250,-500.0,0.00010992,2]
[336269919,1724753444259,-585.47,0.00010992,2]
[336269921,1724753444268,-723.87,0.00010992,2]
[336269923,1724753444279,-500.0,0.00010992,2]
[336269925,1724753444288,-500.0,0.00010992,2]
[336269927,1724753444297,-500.0,0.00010992,2]
[336269928,1724753444306,-618.45,0.00010992,2]
[336269930,1724753444315,-500.0,0.00010992,2]
[336269932,1724753444325,-500.0,0.00010992,2]
[336269934,1724753444334,-500.0,0.00010992,2]
[336269936,1724753444343,-500.0,0.00010992,2]
[336269938,1724753444353,-500.0,0.00010992,2]
[336269940,1724753444362,-500.0,0.00010992,2]
[336269941,1724753444372,-500.0,0.00010992,2]
[336269943,1724753444381,-209.92,0.00010992,2]
[336269945,1724753444390,-474.18,0.00010992,2]
[336269947,1724753444399,-500.0,0.00010992,2]
[336269949,1724753444409,-500.0,0.00010992,2]
[336269951,1724753444418,-500.0,0.00010992,2]
[336269953,1724753444428,-500.0,0.00010992,2]
[336269955,1724753444438,-500.0,0.00010992,2]
[336269957,1724753444447,-500.0,0.00010992,2]
[336269958,1724753444456,-500.0,0.00010992,2]
[336269960,1724753444465,-1077.62,0.00010992,2]
[336269962,1724753444474,-540.39,0.00010992,2]
[336269964,1724753444484,-500.0,0.00010992,2]
[336269966,1724753444493,-500.0,0.00010992,2]
[336269968,1724753444502,-500.0,0.00010992,2]
[336269970,1724753444511,-151.0,0.00010992,2]
[336269972,1724753444521,-500.0,0.00010992,2]
[336269974,1724753444531,-920.79,0.00010992,2]
[336269976,1724753444540,-583.36,0.00010992,2]
[336269978,1724753444552,-500.0,0.00010992,2]
[336269979,1724753444562,-670.32,0.00010992,2]
[336269981,1724753444571,-500.0,0.00010992,2]
[336269983,1724753444580,-500.0,0.00010992,2]
[336269985,1724753444591,-500.0,0.00010992,2]
[336269987,1724753444600,-500.0,0.00010992,2]
[336269989,1724753444609,-500.0,0.00010992,2]
[336269991,1724753444619,-500.0,0.00010992,2]
[336269993,1724753444630,-500.0,0.00010992,2]
[336269995,1724753444640,-500.0,0.00010992,2]
[336269998,1724753444651,-500.0,0.00010992,2]
[336270000,1724753444661,-500.0,0.00010992,2]
[336270002,1724753444670,-500.0,0.00010992,2]
[336270003,1724753444679,-500.0,0.00010992,2]
[336270005,1724753444688,-500.0,0.00010992,2]
[336270007,1724753444698,-511.9,0.00010992,2]
[336270009,1724753444707,-500.0,0.00010992,2]
[336270011,1724753444716,-500.0,0.00010992,2]
[336270013,1724753444725,-500.0,0.00010992,2]
[336270015,1724753444735,-151.0,0.00010992,2]
[336270018,1724753444746,-151.0,0.00010992,2]
[336270019,1724753444755,-151.0,0.00010992,2]
[336270021,1724753444764,-500.0,0.00010992,2]
[336270023,1724753444775,-151.0,0.00010992,2]
[336270025,1724753444784,-1000.0,0.00010992,2]
[336270027,1724753444793,-500.0,0.00010992,2]
[336270029,1724753444803,-500.0,0.00010992,2]
[336270031,1724753444812,-500.0,0.00010992,2]
[336270032,1724753444821,-500.0,0.00010992,2]
[336270033,1724753444831,-1342.91,0.00010992,2]
[336270034,1724753444840,-400.0,0.00010992,2]
[336270035,1724753444850,-500.0,0.00010992,2]
[336270036,1724753444859,-500.0,0.00010992,2]
[336270037,1724753444868,-500.0,0.00010992,2]
[336270038,1724753444878,-500.0,0.00010992,2]
[336270039,1724753444888,-500.0,0.00010992,2]
[336270040,1724753444897,-500.0,0.00010992,2]
[336270041,1724753444907,-500.0,0.00010992,2]
[336270042,1724753444917,-500.0,0.00010992,2]
[336270043,1724753444926,-500.0,0.00010992,2]
[336270059,1724753445104,-1456.7,0.00010992,2]
[336270061,1724753445114,-2107.88,0.00010992,2]
[336270063,1724753445124,-500.0,0.00010992,2]
[336270065,1724753445134,-500.0,0.00010992,2]
[336270067,1724753445144,-500.0,0.00010992,2]
[336270068,1724753445153,-1502.55,0.00010992,2]
[336270070,1724753445163,-151.0,0.00010992,2]
[336270072,1724753445173,-151.0,0.00010992,2]
[336270074,1724753445183,-151.0,0.00010992,2]
[336270076,1724753445193,-151.0,0.00010992,2]
[336270078,1724753445203,-500.0,0.00010992,2]
[336270080,1724753445212,-3360.54,0.00010992,2]
[336270082,1724753445222,-151.0,0.00010992,2]
[336270084,1724753445231,-151.0,0.00010992,2]
[336270086,1724753445241,-151.0,0.00010992,2]
[336270088,1724753445251,-151.0,0.00010992,2]
[336270090,1724753445260,-516.25,0.00010992,2]
[336270092,1724753445270,-151.0,0.00010992,2]
[336270094,1724753445285,-151.0,0.00010992,2]
[336270096,1724753445296,-500.0,0.00010992,2]
[336270098,1724753445306,-500.0,0.00010992,2]
[336270100,1724753445315,-1560.78,0.00010992,2]
[336270102,1724753445325,-500.0,0.00010992,2]
[336270104,1724753445335,-3397.79,0.00010992,2]
[336270106,1724753445345,-500.0,0.00010992,2]
[336270108,1724753445356,-500.0,0.00010992,2]
[336270110,1724753445365,-500.0,0.00010992,2]
[336270112,1724753445375,-574.37,0.00010992,2]
[336270113,1724753445385,-500.0,0.00010993,2]
[336270115,1724753445394,-500.0,0.00010993,2]
[336270117,1724753445404,-500.0,0.00010993,2]
[336270119,1724753445414,-630.51,0.00010993,2]
[336270121,1724753445424,-500.0,0.00010993,2]
[336270123,1724753445434,-500.0,0.00010993,2]
[336270125,1724753445443,-500.0,0.00010993,2]
[336270127,1724753445453,-500.0,0.00010993,2]
[336270129,1724753445463,-500.0,0.00010993,2]
[336270131,1724753445473,-500.0,0.00010993,2]
[336270134,1724753445482,-500.0,0.00010993,2]
[336270136,1724753445492,-526.86,0.00010993,2]
[336270138,1724753445502,-500.0,0.00010993,2]
[336270140,1724753445512,-500.0,0.00010993,2]
[336270142,1724753445521,-567.35,0.00010993,2]
[336270144,1724753445536,-180.54314786,0.00010993,2]
[336270146,1724753445546,-500.0,0.00010993,2]
[336270148,1724753445556,-500.0,0.00010993,2]
[336270150,1724753445568,-500.0,0.00010993,2]
[336270151,1724753445578,-528.10972905,0.00010993,2]
[336270152,1724753445588,-500.0,0.00010993,2]
[336270153,1724753445598,-500.0,0.00010993,2]
[336270154,1724753445608,-500.0,0.00010993,2]
[336270155,1724753445617,-500.0,0.00010993,2]
[336270156,1724753445627,-500.0,0.00010993,2]
[336270157,1724753445639,-500.0,0.00010993,2]
[336270158,1724753445649,-500.0,0.00010993,2]
[336270159,1724753445658,-500.0,0.00010993,2]
[336270161,1724753445668,-500.0,0.00010993,2]
[336270163,1724753445677,-500.0,0.00010993,2]
[336270165,1724753445687,-500.0,0.00010993,2]
[336270167,1724753445697,-151.0,0.00010993,2]
[336270169,1724753445707,-151.0,0.00010993,2]
[336270171,1724753445716,-500.0,0.00010993,2]
[336270173,1724753445725,-500.0,0.00010993,2]
[336270175,1724753445735,-151.0,0.00010993,2]
[336270177,1724753445745,-151.0,0.00010993,2]
[336270179,1724753445755,-151.0,0.00010993,2]
[336270181,1724753445764,-151.0,0.00010993,2]
[336270183,1724753445774,-500.0,0.00010993,2]
[336270185,1724753445787,-383.69503706,0.00010993,2]
[336270187,1724753445796,-500.0,0.00010993,2]
[336270189,1724753445806,-266.5,0.00010993,2]
[336270191,1724753445816,-500.0,0.00010993,2]
[336270194,1724753445826,-500.0,0.00010993,2]
[336270196,1724753445835,-500.0,0.00010993,2]
[336270198,1724753445845,-500.0,0.00010993,2]
[336270200,1724753445855,-500.0,0.00010993,2]
[336270202,1724753445864,-500.0,0.00010993,2]
[336270204,1724753445874,-741.96,0.00010993,2]
[336270205,1724753445883,-151.0,0.00010993,2]
[336270207,1724753445892,-184.724403,0.00010993,2]
[336270209,1724753445902,-500.0,0.00010993,2]
[336270211,1724753445912,-510.28579897,0.00010993,2]
[336270213,1724753445922,-379.83870763,0.00010993,2]
[336270216,1724753445932,-620.49,0.00010993,2]
[336270218,1724753445942,-828.72,0.00010993,2]
[336270220,1724753445952,-559.71,0.00010993,2]
[336270222,1724753445961,-1071.99,0.00010993,2]
[336270223,1724753445971,-500.0,0.00010993,2]
[336270225,1724753445981,-1774.74,0.00010993,2]
[336270227,1724753445990,-500.0,0.00010993,2]
[336270229,1724753446000,-500.0,0.00010993,2]
[336270231,1724753446009,-3157.78,0.00010993,2]
[336270233,1724753446019,-691.86,0.00010993,2]
[336270235,1724753446031,-3107.38,0.00010993,2]
[336270237,1724753446046,-1643.34,0.00010993,2]
[336270239,1724753446056,-151.0,0.00010993,2]
[336270241,1724753446066,-151.0,0.00010993,2]
[336270243,1724753446075,-151.0,0.00010993,2]
[336270245,1724753446085,-262.589585,0.00010993,2]
[336270247,1724753446094,-500.0,0.00010993,2]
[336270249,1724753446104,-1851.19,0.00010993,2]
[336270251,1724753446113,-500.0,0.00010993,2]
[336270253,1724753446123,-636.45,0.00010993,2]
[336270255,1724753446133,-500.0,0.00010993,2]
[336270256,1724753446142,-863.42,0.00010993,2]
[336270258,1724753446152,-500.0,0.00010993,2]
[336270260,1724753446162,-500.0,0.00010993,2]
[336270262,1724753446171,-500.0,0.00010993,2]
[336270264,1724753446181,-500.0,0.00010993,2]
[336270266,1724753446191,-500.0,0.00010993,2]
[336270268,1724753446201,-500.0,0.00010993,2]
[336270270,1724753446211,-500.0,0.00010993,2]
[336270272,1724753446220,-890.13,0.00010993,2]
[336270274,1724753446230,-500.0,0.00010993,2]
[336270276,1724753446240,-500.0,0.00010993,2]
[336270278,1724753446250,-151.0,0.00010993,2]
[336270280,1724753446259,-500.0,0.00010993,2]
[336270282,1724753446269,-549.78,0.00010993,2]
[336270284,1724753446281,-500.0,0.00010993,2]
[336270286,1724753446290,-500.0,0.00010993,2]
[336270288,1724753446300,-500.0,0.00010993,2]
[336270290,1724753446311,-227.643018,0.00010993,2]
[336270292,1724753446320,-249.70607862,0.00010993,2]
[336270295,1724753446336,-587.74392138,0.00010993,2]
[336270297,1724753446347,-1400.7,0.00010993,2]
[336270299,1724753446357,-500.0,0.00010993,2]
[336270301,1724753446366,-500.0,0.00010993,2]
[336270303,1724753446376,-500.0,0.00010993,2]
[336270305,1724753446386,-1109.94,0.00010993,2]
[336270307,1724753446395,-702.7,0.00010993,2]
[336270309,1724753446405,-500.0,0.00010993,2]
[336270311,1724753446415,-500.0,0.00010993,2]
[336270313,1724753446424,-500.0,0.00010993,2]
[336270315,1724753446433,-5103.94,0.00010993,2]
[336270317,1724753446443,-500.0,0.00010993,2]
[336270319,1724753446452,-557.72,0.00010993,2]
[336270321,1724753446462,-1278.92,0.00010993,2]
[336270323,1724753446471,-526.07,0.00010993,2]
[336270325,1724753446481,-151.0,0.00010993,2]
[336270327,1724753446491,-1963.25,0.00010993,2]
[336270329,1724753446500,-1242.10285864,0.00010993,2]
[336270331,1724753446509,-6017.97,0.00010993,2]
[336270333,1724753446518,-500.0,0.00010993,2]
[336270334,1724753446531,-500.0,0.00010993,2]
[336270337,1724753446541,-500.0,0.00010993,2]
[336270339,1724753446551,-500.0,0.00010993,2]
[336270341,1724753446565,-653.41148984,0.00010993,2]
[336270343,1724753446574,-500.0,0.00010993,2]
[336270345,1724753446583,-500.0,0.00010993,2]
[336270347,1724753446594,-1943.33,0.00010993,2]
[336270349,1724753446603,-500.0,0.00010993,2]
[336270351,1724753446613,-1250.571391,0.00010993,2]
[336270353,1724753446622,-819.825552,0.00010993,2]
[336270355,1724753446632,-500.0,0.00010993,2]
[336270356,1724753446642,-500.0,0.00010993,2]
[336270358,1724753446652,-500.0,0.00010993,2]
[336270361,1724753446662,-2245.919946,0.00010993,2]
[336270362,1724753446671,-500.0,0.00010993,2]
[336270364,1724753446681,-500.0,0.00010993,2]
[336270366,1724753446690,-4588.9,0.00010993,2]
[336270368,1724753446700,-720.03,0.00010993,2]
[336270370,1724753446709,-1243.71,0.00010993,2]
[336270372,1724753446719,-500.0,0.00010993,2]
[336270374,1724753446729,-246.47762007,0.00010994,2]
[336270376,1724753446739,-500.0,0.00010994,2]
[336270378,1724753446749,-500.0,0.00010994,2]
[336270380,1724753446758,-500.0,0.00010994,2]
[336270382,1724753446767,-500.0,0.00010994,2]
[336270384,1724753446778,-630.51,0.00010994,2]
[336270386,1724753446788,-500.0,0.00010994,2]
[336270388,1724753446797,-500.0,0.00010994,2]
[336270390,1724753446807,-500.0,0.00010994,2]
[336270392,1724753446817,-500.0,0.00010994,2]
[336270394,1724753446827,-500.0,0.00010994,2]
[336270396,1724753446836,-500.0,0.00010994,2]
[336270399,1724753446849,-500.0,0.00010994,2]
[336270400,1724753446858,-526.86,0.00010994,2]
[336270402,1724753446868,-500.0,0.00010994,2]
[336270404,1724753446877,-500.0,0.00010994,2]
[336270406,1724753446887,-567.35,0.00010994,2]
[336270408,1724753446896,-500.0,0.00010994,2]
[336270410,1724753446906,-500.0,0.00010994,2]
[336270412,1724753446915,-618.95818217,0.00010994,2]
[336270414,1724753446925,-500.0,0.00010994,2]
[336270416,1724753446935,-500.0,0.00010994,2]
[336270418,1724753446944,-500.0,0.00010994,2]
[336270420,1724753446954,-500.0,0.00010994,2]
[336270422,1724753446964,-701.14,0.00010994,2]
[336270424,1724753446973,-500.0,0.00010994,2]
[336270427,1724753446984,-500.0,0.00010994,2]
[336270428,1724753446994,-500.0,0.00010994,2]
[336270430,1724753447003,-500.0,0.00010994,2]
[336270432,1724753447014,-500.0,0.00010994,2]
[336270434,1724753447024,-1169.96,0.00010994,2]
[336270436,1724753447036,-500.0,0.00010994,2]
[336270438,1724753447045,-512.10582227,0.00010994,2]
[336270440,1724753447054,-500.0,0.00010994,2]
[336270442,1724753447064,-614.5,0.00010994,2]
[336270444,1724753447073,-585.71490656,0.00010994,2]
[336270446,1724753447082,-500.0,0.00010994,2]
[336270448,1724753447092,-500.0,0.00010994,2]
[336270450,1724753447101,-500.0,0.00010994,2]
[336270452,1724753447111,-500.0,0.00010994,2]
[336270454,1724753447120,-500.0,0.00010994,2]
[336270456,1724753447130,-500.0,0.00010994,2]
[336270458,1724753447139,-500.0,0.00010994,2]
[336270460,1724753447148,-500.0,0.00010994,2]
[336270462,1724753447158,-639.41,0.00010994,2]
[336270464,1724753447168,-778.43,0.00010994,2]
[336270466,1724753447177,-1053.25,0.00010994,2]
[336270468,1724753447186,-500.0,0.00010994,2]
[336270470,1724753447195,-151.0,0.00010994,2]
[336270472,1724753447205,-151.0,0.00010994,2]
[336270474,1724753447215,-500.0,0.00010994,2]
[336270476,1724753447224,-500.0,0.00010994,2]
[336270478,1724753447234,-500.0,0.00010994,2]
[336270480,1724753447244,-1025.13,0.00010994,2]
[336270482,1724753447253,-500.0,0.00010994,2]
[336270484,1724753447262,-973.11,0.00010994,2]
[336270486,1724753447272,-500.0,0.00010994,2]
[336270488,1724753447283,-500.0,0.00010994,2]
[336270490,1724753447292,-500.0,0.00010994,2]
[336270492,1724753447302,-193.203278,0.00010994,2]
[336270494,1724753447311,-151.0,0.00010994,2]
[336270496,1724753447321,-773.04,0.00010994,2]
[336270498,1724753447331,-163.64,0.00010994,2]
[336270500,1724753447341,-179.655264,0.00010994,2]
[336270502,1724753447351,-500.0,0.00010994,2]
[336270504,1724753447361,-500.0,0.00010994,2]
[336270506,1724753447371,-767.9,0.00010994,2]
[336270508,1724753447380,-500.0,0.00010994,2]
[336270510,1724753447390,-500.0,0.00010994,2]
[336270512,1724753447399,-500.0,0.00010994,2]
[336270514,1724753447408,-631.58,0.00010994,2]
[336270516,1724753447417,-500.0,0.00010994,2]
[336270518,1724753447427,-509.51,0.00010994,2]
[336270520,1724753447436,-500.0,0.00010994,2]
[336270522,1724753447446,-500.0,0.00010994,2]
[336270524,1724753447456,-519.26,0.00010994,2]
[336270530,1724753447509,-500.0,0.00010994,2]
[336270532,1724753447519,-500.0,0.00010994,2]
[336270534,1724753447530,-500.0,0.00010994,2]
[336270536,1724753447539,-500.0,0.00010994,2]
[336270538,1724753447553,-500.0,0.00010994,2]
[336270540,1724753447562,-500.0,0.00010994,2]
[336270542,1724753447572,-166.73563447,0.00010994,2]
[336270584,1724753447995,-333.26436553,0.00010994,2]
[336270586,1724753448005,-500.0,0.00010994,2]
[336270588,1724753448015,-500.0,0.00010994,2]
[336270590,1724753448024,-500.0,0.00010994,2]
[336270592,1724753448036,-500.0,0.00010994,2]
[336270594,1724753448046,-500.0,0.00010994,2]
[336270596,1724753448056,-500.0,0.00010994,2]
[336270598,1724753448067,-500.0,0.00010994,2]
[336270600,1724753448077,-741.96,0.00010994,2]
[336270602,1724753448087,-500.0,0.00010994,2]
[336270604,1724753448097,-794.4,0.00010994,2]
[336270606,1724753448107,-500.0,0.00010994,2]
[336270608,1724753448116,-500.0,0.00010994,2]
[336270610,1724753448126,-500.0,0.00010994,2]
[336270612,1724753448136,-500.0,0.00010994,2]
[336270614,1724753448146,-500.0,0.00010994,2]
[336270616,1724753448157,-500.0,0.00010994,2]
[336270618,1724753448167,-500.0,0.00010994,2]
[336270619,1724753448177,-500.0,0.00010994,2]
[336270622,1724753448187,-500.0,0.00010994,2]
[336270623,1724753448197,-500.0,0.00010994,2]
[336270625,1724753448207,-500.0,0.00010994,2]
[336270627,1724753448216,-500.0,0.00010994,2]
[336270629,1724753448227,-521.6,0.00010994,2]
[336270631,1724753448237,-500.0,0.00010994,2]
[336270633,1724753448247,-500.0,0.00010994,2]
[336270635,1724753448258,-409.08215447,0.00010994,2]
[336270642,1724753448327,-126.66458882,0.00010994,2]
[336270644,1724753448338,-349.43336604,0.00010994,2]
[336270659,1724753448494,-500.0,0.00010958,2]
[336270661,1724753448504,-500.0,0.00010992,2]
[336270663,1724753448514,-150.56663396,0.00010994,2]
[336270665,1724753448524,-417.82842604,0.00010994,2]
[336270668,1724753448539,-202.66157396,0.00010994,2]
[336270669,1724753448551,-462.78842605,0.00010994,2]
[336270672,1724753448566,-37.21157395,0.00010994,2]
[336270674,1724753448577,-540.55803318,0.00010994,2]
[336270676,1724753448586,-500.0,0.00010994,2]
[336270678,1724753448597,-500.0,0.00010994,2]
[336270680,1724753448607,-500.0,0.00010994,2]
[336270682,1724753448616,-500.0,0.00010994,2]
[336270683,1724753448626,-500.0,0.00010994,2]
[336270685,1724753448638,-500.0,0.00010994,2]
[336270688,1724753448648,-997.6,0.00010994,2]
[336270690,1724753448658,-503.33927658,0.00010994,2]
[336270692,1724753448670,-304.77072342,0.00010994,2]
[336270694,1724753448679,-109.48647786,0.00010994,2]
[336270697,1724753448702,-390.51352214,0.00010994,2]
[336270699,1724753448711,-616.95,0.00010994,2]
[336270701,1724753448721,-500.0,0.00010994,2]
[336270703,1724753448730,-585.47,0.00010994,2]
[336270705,1724753448740,-723.87,0.00010994,2]
[336270707,1724753448750,-500.0,0.00010994,2]
[336270709,1724753448760,-500.0,0.00010994,2]
[336270711,1724753448769,-500.0,0.00010994,2]
[336270713,1724753448781,-618.45,0.00010994,2]
[336270715,1724753448800,-500.0,0.00010994,2]
[336270717,1724753448809,-500.0,0.00010994,2]
[336270719,1724753448819,-500.0,0.00010994,2]
[336270721,1724753448828,-500.0,0.00010994,2]
[336270723,1724753448838,-500.0,0.00010994,2]
[336270726,1724753448848,-253.4541764,0.00010994,2]
[336270727,1724753448857,-500.0,0.00010994,2]
[336270728,1724753448867,-500.0,0.00010994,2]
[336270729,1724753448876,-500.0,0.00010994,2]
[336270730,1724753448886,-500.0,0.00010994,2]
[336270731,1724753448895,-292.53341442,0.00010994,2]
[336270732,1724753448904,-500.0,0.00010994,2]
[336270733,1724753448913,-500.0,0.00010994,2]
[336270734,1724753448923,-500.0,0.00010994,2]
[336270735,1724753448932,-1077.62,0.00010994,2]
[336270736,1724753448941,-540.39,0.00010994,2]
[336270737,1724753448951,-500.0,0.00010994,2]
[336270738,1724753448960,-500.0,0.00010994,2]
[336270739,1724753448970,-500.0,0.00010994,2]
[336270740,1724753448979,-920.79,0.00010994,2]
[336270741,1724753448989,-583.36,0.00010994,2]
[336270742,1724753448998,-500.0,0.00010994,2]
[336270743,1724753449007,-670.32,0.00010994,2]
[336270744,1724753449016,-500.0,0.00010994,2]
[336270745,1724753449026,-500.0,0.00010994,2]
[336270746,1724753449042,-500.0,0.00010994,2]
[336270747,1724753449052,-500.0,0.00010994,2]
[336270748,1724753449061,-500.0,0.00010994,2]
[336270749,1724753449071,-500.0,0.00010994,2]
[336270750,1724753449081,-500.0,0.00010994,2]
[336270751,1724753449091,-500.0,0.00010994,2]
[336270752,1724753449101,-500.0,0.00010994,2]
[336270753,1724753449112,-500.0,0.00010994,2]
[336270754,1724753449121,-500.0,0.00010994,2]
[336270755,1724753449131,-511.9,0.00010994,2]
[336270756,1724753449141,-500.0,0.00010994,2]
[336270757,1724753449152,-500.0,0.00010994,2]
[336270758,1724753449162,-500.0,0.00010994,2]
[336270759,1724753449172,-151.0,0.00010994,2]
[336270760,1724753449182,-151.0,0.00010994,2]
[336270761,1724753449192,-500.0,0.00010994,2]
[336270762,1724753449203,-1000.0,0.00010994,2]
[336270763,1724753449213,-500.0,0.00010994,2]
[336270764,1724753449223,-500.0,0.00010994,2]